bitfinex/quotes_ETHUSD_20251006
["timestamp","ask_amount","ask_price","bid_price","bid_amount"]
[1759761918566,0.4731,4653.8,4653.7,2.5562]
[1759761918791,2.14876967,4653.9,4653.7,2.5562]
[1759761919167,2.14878164,4653.8,4653.7,2.5562]
[1759761919563,2.14878164,4653.8,4653.7,0.1072]
[1759761919767,2.14878164,4653.8,4653.7,2.5562]
[1759761920969,0.4731,4654.3,4653.7,2.5562]
[1759761921174,0.1072,4654.4,4653.7,2.5562]
[1759761921518,0.1072,4654.8,4654.2,0.1072]
[1759761921675,2.14827386,4654.9,4654.3,2.449]
[1759761921870,2.1483254,4654.8,4654.7,0.1072]
[1759761922068,2.15023781,4655.0,4654.7,2.5562]
[1759761922272,2.14828232,4654.9,4654.7,2.5562]
[1759761922804,2.14832001,4654.8,4654.7,2.5562]
[1759761923011,0.002,4655.0,4654.7,2.81182]
[1759761923776,0.002,4655.0,4654.9,0.1072]
[1759761924368,0.002,4655.0,4654.9,2.5562]
[1759761926680,0.002,4655.0,4654.9,7.22227386]
[1759761926918,0.002,4655.0,4654.9,7.85587386]
[1759761927095,0.002,4655.0,4654.9,24.68355199]
[1759761927304,0.002,4655.0,4654.9,25.28249899]
[1759761928019,0.002,4655.0,4654.9,30.60174399]
[1759761929019,0.002,4655.0,4654.9,39.28460699]
[1759761929504,0.002,4655.5,4655.4,2.14804313]
[1759761929811,0.002,4655.5,4655.4,5.66025858]
[1759761930012,0.002,4655.5,4655.4,29.18501658]
[1759761930214,0.002,4655.5,4655.4,28.42803158]
[1759761930413,0.002,4655.5,4655.4,28.66937786]
[1759761930615,0.002,4655.5,4655.4,27.40338486]
[1759761931018,0.002,4656.0,4655.9,2.78141245]
[1759761931190,0.002,4656.0,4655.9,24.25329378]
[1759761931391,0.002,4656.0,4655.9,24.49383378]
[1759761931715,0.002,4656.0,4655.9,15.63706078]
[1759761932116,0.002,4656.0,4655.9,20.23854878]
[1759761932418,0.002,4656.0,4655.9,5.78154178]
[1759761932616,0.002,4656.0,4655.9,3.00012933]
[1759761932916,0.002,4656.0,4655.9,5.44912933]
[1759761933215,0.002,4656.0,4655.9,3.00012933]
[1759761933419,0.4565,4656.0,4655.9,5.44812933]
[1759761933995,0.4565,4656.0,4655.9,4.9552]
[1759761934196,0.002,4656.0,4655.9,4.9552]
[1759761937218,0.4524,4656.0,4655.9,2.5072]
[1759761937548,2.14782912,4655.9,4654.7,2.14832471]
[1759761937829,0.4524,4656.0,4654.7,2.14832471]
[1759761937830,0.002,4656.0,4655.6,0.1072]
[1759761937996,2.14789854,4655.8,4655.7,2.448]
[1759761938327,2.14790471,4655.7,4655.6,0.1072]
[1759761938526,2.14790471,4655.7,4655.6,4.9552]
[1759761938527,0.4504,4655.7,4655.6,4.9552]
[1759761938740,2.14978286,4656.0,4655.6,4.9552]
[1759761938741,0.002,4656.0,4655.6,4.9552]
[1759761938900,0.002,4656.0,4655.7,14.45906]
[1759761939099,0.002,4656.0,4655.9,0.1072]
[1759761939614,0.002,4656.0,4655.9,2.5552]
[1759761940120,0.4524,4656.0,4655.9,2.5552]
[1759761940527,0.4524,4656.0,4655.9,0.1072]
[1759761940903,0.4524,4656.0,4655.9,2.5552]
[1759761942733,2.60016632,4656.0,4655.9,2.5552]
[1759761943227,2.60016632,4656.0,4655.9,0.1072]
[1759761943431,2.60016632,4656.0,4655.9,2.448]
[1759761943638,2.14814211,4655.2,4654.7,0.21777223]
[1759761943833,0.4504,4655.1,4654.8,2.448]
[1759761944134,2.59843718,4655.5,4655.1,0.1072]
[1759761944436,2.59847884,4655.4,4655.2,2.448]
[1759761944640,2.14808927,4655.3,4655.2,2.448]
[1759761944830,0.4496,4655.3,4655.2,2.448]
[1759761945809,0.4496,4655.3,4655.1,0.1072]
[1759761946013,2.14808927,4655.3,4655.2,2.448]
[1759761946352,0.1072,4655.9,4655.2,2.448]
[1759761946505,2.14785858,4655.8,4655.3,2.448]
[1759761946704,2.25502603,4655.9,4655.3,2.448]
[1759761946909,2.14800496,4655.5,4655.3,2.448]
[1759761947136,2.59844313,4655.4,4655.3,2.448]
[1759761947304,2.14813541,4655.2,4655.1,0.1072]
[1759761947508,0.1072,4655.9,4655.1,0.1072]
[1759761947821,2.14808927,4655.3,4655.2,2.448]
[1759761948003,2.59848927,4655.3,4655.2,2.448]
[1759761948417,0.4504,4655.3,4655.2,2.448]
[1759761948839,2.14800981,4655.5,4655.2,2.448]
[1759761949032,2.14804357,4655.4,4655.2,2.448]
[1759761949234,0.22569284,4655.8,4655.2,2.448]
[1759761949235,0.4504,4655.3,4655.2,2.448]
[1759761950038,2.14794985,4655.7,4655.2,2.448]
[1759761950340,2.59835085,4655.6,4655.2,2.448]
[1759761950542,0.4504,4655.5,4655.2,2.448]
[1759761951352,2.25501807,4655.9,4655.2,2.448]
[1759761951353,0.4504,4655.4,4655.2,2.448]
[1759761951531,2.14805267,4655.4,4655.2,2.448]
[1759761951735,0.4504,4655.4,4655.2,2.448]
[1759761951951,2.14792541,4655.7,4655.2,2.448]
[1759761952156,2.59836337,4655.6,4655.2,2.448]
[1759761952369,2.25503072,4655.9,4655.2,2.448]
[1759761952532,0.002,4656.0,4655.5,0.1072]
[1759761952737,0.002,4656.0,4655.6,2.448]
[1759761953752,2.14980494,4656.0,4655.6,2.448]
[1759761954264,0.002,4656.0,4655.6,2.448]
[1759761954464,2.14786219,4655.8,4655.6,2.448]
[1759761954650,0.4524,4656.0,4655.6,2.448]
[1759761954862,0.4504,4655.9,4655.5,0.1072]
[1759761955057,2.14795085,4655.6,4655.5,0.1072]
[1759761955241,2.14795085,4655.6,4653.9,1.62247328]
[1759761955242,0.4504,4655.6,4653.9,1.62247328]
[1759761955444,0.1072,4655.9,4653.9,1.62247328]
[1759761955445,2.14826449,4655.0,4654.1,2.14864313]
[1759761955830,2.14826449,4655.0,4653.9,2.49138915]
[1759761955831,2.14828815,4654.9,4654.2,2.448]
[1759761956057,2.14828815,4654.9,4654.8,0.1072]
[1759761956229,2.14828815,4654.9,4654.8,2.5552]
[1759761956434,2.59868815,4654.9,4653.3,1.50387328]
[1759761956636,2.59868484,4654.9,4654.6,0.1072]
[1759761956856,2.14832001,4654.8,4654.7,2.448]
[1759761957232,0.4504,4654.9,4654.7,2.448]
[1759761957658,0.4504,4654.8,4654.7,2.448]
[1759761957964,2.59872001,4654.8,4654.7,2.448]
[1759761958168,0.4504,4654.8,4654.7,2.448]
[1759761958468,2.59872001,4654.8,4654.7,2.448]
[1759761959264,2.14832001,4654.8,4654.7,2.448]
[1759761959437,0.4504,4655.3,4654.7,2.448]
[1759761959837,2.14832001,4654.8,4654.7,2.448]
[1759761960035,2.59872001,4654.8,4654.7,2.448]
[1759761962475,0.002,4655.3,4654.7,2.92942]
[1759761962676,0.002,4655.3,4655.2,0.1072]
[1759761962970,0.002,4655.3,4655.2,2.5552]
[1759761963171,0.002,4655.3,4655.2,5.58898]
[1759761963364,0.002,4655.3,4655.2,17.56429941]
[1759761963564,0.002,4655.3,4655.2,34.1533836]
[1759761963872,0.002,4655.3,4655.2,37.1595706]
[1759761964175,0.002,4655.3,4655.2,37.40091688]
[1759761964376,0.002,4656.0,4655.7,2.78150471]
[1759761964611,0.002,4656.0,4655.7,3.0816]
[1759761964876,0.002,4656.0,4655.7,3.49696]
[1759761965281,0.002,4656.0,4655.7,28.72432271]
[1759761965581,0.002,4656.0,4655.7,28.88374999]
[1759761966085,0.0012,4656.5,4655.7,28.88374999]
[1759761966086,0.0012,4656.5,4656.4,2.78118182]
[1759761966382,0.0012,4656.5,4656.4,19.7210561]
[1759761966550,0.0012,4656.5,4656.4,24.53987991]
[1759761966754,0.0012,4656.5,4656.4,4.67569181]
[1759761966948,0.0012,4656.5,4656.4,4.9542]
[1759761968152,0.0012,4656.5,4656.4,7.10178182]
[1759761968346,0.0012,4656.5,4656.4,23.61174282]
[1759761968585,0.0012,4656.5,4656.4,23.63346982]
[1759761969082,0.0012,4656.5,4656.4,24.26706982]
[1759761969301,0.0012,4656.5,4656.4,26.43556163]
[1759761969462,0.002,4657.5,4656.9,5.18095124]
[1759761969667,0.002,4657.5,4656.9,7.89003534]
[1759761969984,0.002,4657.5,4657.4,2.14712071]
[1759761969985,0.0012,4657.5,4657.4,2.14712071]
[1759761970192,0.0012,4657.5,4657.4,4.9542]
[1759761970372,0.0012,4657.5,4657.4,7.81145674]
[1759761971184,0.0012,4657.5,4657.4,5.66433603]
[1759761971487,2.4,4657.4,4656.0,1.50387328]
[1759761971781,0.4679,4657.5,4655.8,0.1072]
[1759761971782,2.14781245,4655.9,4655.8,0.1072]
[1759761971986,2.61451245,4655.9,4655.8,2.5542]
[1759761972185,2.14793733,4655.7,4654.6,0.001]
[1759761972482,2.14793065,4655.7,4655.5,0.1072]
[1759761972690,0.26146307,4655.6,4655.5,0.1072]
[1759761972864,2.1479155,4655.7,4655.5,2.5542]
[1759761973055,2.61465085,4655.6,4655.5,0.1072]
[1759761973263,2.61465085,4655.6,4655.5,2.5542]
[1759761973457,0.4667,4656.1,4655.5,2.5542]
[1759761973882,2.14795085,4655.6,4655.5,2.5542]
[1759761974084,2.61465085,4655.6,4655.5,2.5542]
[1759761974463,2.61465085,4655.6,4655.5,0.1072]
[1759761974708,2.61465085,4655.6,4655.5,2.5542]
[1759761976087,0.4667,4655.6,4655.5,2.5542]
[1759761976606,0.4667,4656.1,4655.5,2.5542]
[1759761976895,2.14787349,4655.8,4655.5,2.5542]
[1759761977067,0.4667,4656.5,4655.5,2.5542]
[1759761977269,0.1072,4656.5,4655.8,0.1072]
[1759761977469,2.14765393,4656.3,4656.1,0.1072]
[1759761977800,2.14752346,4656.6,4656.1,0.1072]
[1759761977801,2.14759035,4656.4,4656.1,0.1072]
[1759761978095,2.14760364,4656.4,4656.1,0.1072]
[1759761978274,2.14790389,4655.8,4654.9,2.78186965]
[1759761978475,0.4667,4656.2,4655.9,0.1072]
[1759761978807,0.4667,4656.2,4656.0,2.447]
[1759761979099,2.61437406,4656.2,4656.1,2.447]
[1759761979296,0.4667,4656.2,4656.1,2.447]
[1759761979593,2.14758182,4656.4,4656.1,2.447]
[1759761979786,2.61432794,4656.3,4656.2,2.447]
[1759761980395,0.4667,4656.3,4656.2,2.447]
[1759761980594,2.14762794,4656.3,4656.2,2.447]
[1759761981174,2.14748958,4656.6,4656.2,2.447]
[1759761981369,2.14762794,4656.3,4656.2,2.447]
[1759761981705,2.14962794,4656.3,4656.2,2.447]
[1759761982085,2.61632794,4656.3,4656.2,2.447]
[1759761982804,0.002,4656.3,4656.2,2.447]
[1759761983301,2.14962794,4656.3,4656.2,2.447]
[1759761984074,2.14767406,4656.2,4656.1,0.1072]
[1759761984408,2.61437406,4656.2,4656.1,0.1072]
[1759761984575,2.61437406,4656.2,4656.1,2.1782]
[1759761984903,0.4667,4656.2,4656.1,2.1782]
[1759761985115,2.61437406,4656.2,4656.1,2.1782]
[1759761985288,0.4667,4656.2,4656.1,2.1782]
[1759761985484,2.14767406,4656.2,4656.1,2.1782]
[1759761985697,2.14767406,4656.2,4656.1,0.1072]
[1759761985901,0.002,4656.3,4656.1,2.5532]
[1759761986302,2.14963245,4656.3,4656.1,2.5532]
[1759761986487,2.14767406,4656.2,4656.1,2.5532]
[1759761987415,0.002,4656.3,4656.1,2.5532]
[1759761987584,2.14963653,4656.3,4656.1,2.5532]
[1759761987779,2.14767406,4656.2,4656.1,2.5532]
[1759761987977,0.002,4656.3,4656.1,2.5532]
[1759761988414,0.002,4656.3,4656.2,0.1072]
[1759761988904,0.002,4656.3,4656.2,23.53196706]
[1759761989107,0.002,4656.8,4656.5,0.6336]
[1759761989275,0.002,4656.8,4656.2,0.25532]
[1759761989478,0.002,4656.8,4656.3,2.446]
[1759761989679,0.002,4656.8,4656.3,4.59358588]
[1759761989896,0.002,4656.8,4656.5,2.14751171]
[1759761990102,0.002,4656.8,4656.4,3.0996604]
[1759761990103,0.002,4656.8,4656.4,0.6996604]
[1759761990275,0.002,4656.8,4656.5,2.6111333]
[1759761990478,0.002,4656.8,4656.6,2.14747449]
[1759761990781,0.002,4656.8,4656.6,0.4636]
[1759761990980,0.002,4656.8,4656.7,5.11852647]
[1759761991583,0.002,4656.8,4656.7,11.84773647]
[1759761991797,0.002,4656.8,4656.7,6.21572647]
[1759761992102,0.002,4656.8,4656.7,17.05057647]
[1759761992300,0.002,4656.8,4656.7,16.45574847]
[1759761992685,0.002,4656.8,4656.7,30.19766547]
[1759761992886,0.002,4656.8,4656.7,30.26216547]
[1759761993487,0.002,4657.3,4657.2,2.14721291]
[1759761993814,0.0012,4657.3,4657.2,7.8415342]
[1759761994320,0.0012,4657.3,4657.2,8.2729342]
[1759761995185,0.0012,4657.3,4657.2,9.41508475]
[1759761995384,0.0012,4657.3,4657.2,8.2729342]
[1759761995618,0.0012,4657.3,4657.2,13.0669112]
[1759761995820,0.0012,4657.3,4657.2,14.20863994]
[1759761996025,0.0012,4657.3,4657.2,13.0669112]
[1759761996388,0.0012,4657.3,4657.2,17.4760052]
[1759761996710,0.0012,4657.3,4657.2,12.36148421]
[1759761996896,0.0012,4657.3,4657.2,7.8415342]
[1759761997085,0.0012,4657.3,4657.2,10.3977552]
[1759761997284,0.0012,4657.3,4657.2,10.4406772]
[1759761997723,0.0012,4657.3,4657.2,5.05972129]
[1759761997923,0.0012,4657.3,4657.2,4.845]
[1759761998285,0.0012,4657.3,4657.2,6.99221291]
[1759761998795,0.0012,4657.3,4657.2,7.73301291]
[1759762000017,0.0012,4657.3,4657.2,4.9522]
[1759762000220,0.0012,4657.3,4657.2,7.09941291]
[1759762000414,0.0012,4657.3,4657.2,8.02408871]
[1759762000922,0.4398,4657.3,4657.2,2.5072]
[1759762001109,0.4398,4657.3,4657.2,4.9522]
[1759762002691,0.0012,4657.3,4657.2,4.9522]
[1759762004438,0.4398,4657.3,4657.2,4.9522]
[1759762004799,0.4398,4657.3,4657.2,2.5522]
[1759762005202,0.418134,4657.3,4657.2,2.5522]
[1759762006269,0.418134,4657.3,4656.5,1.14156201]
[1759762006270,2.14748958,4656.6,4656.5,0.1072]
[1759762006541,2.14748958,4656.6,4656.5,2.5522]
[1759762007033,2.14759478,4656.4,4656.1,0.001]
[1759762007206,2.14759478,4656.4,4656.2,2.5522]
[1759762007407,0.4386,4656.3,4656.2,0.1072]
[1759762007748,2.58622794,4656.3,4656.2,2.5522]
[1759762008232,0.4386,4656.3,4656.2,2.5522]
[1759762008431,2.58422794,4656.3,4656.2,2.5522]
[1759762008631,0.1072,4656.7,4656.2,2.5522]
[1759762009033,2.25464529,4656.7,4656.2,2.5522]
[1759762009409,2.14716681,4657.3,4656.2,2.5522]
[1759762009637,2.14723908,4657.2,4656.3,2.14762794]
[1759762009834,2.14732087,4657.0,4656.8,0.1072]
[1759762010048,0.002,4657.4,4656.9,2.445]
[1759762010249,2.14716681,4657.3,4656.9,2.445]
[1759762010448,2.14730434,4657.1,4656.9,2.445]
[1759762010649,2.58590513,4657.0,4656.9,2.445]
[1759762011149,0.002,4657.4,4656.9,2.445]
[1759762011651,0.002,4657.4,4657.2,0.1072]
[1759762011954,0.002,4657.4,4657.3,2.445]
[1759762013050,2.58772071,4657.4,4657.3,2.445]
[1759762013446,2.14716681,4657.3,4657.2,0.1072]
[1759762013653,2.58576681,4657.3,4657.2,2.5522]
[1759762015235,2.58576681,4657.3,4657.2,0.1072]
[1759762015453,2.58576681,4657.3,4657.2,2.5522]
[1759762015653,2.14738106,4656.9,4656.2,1.14156201]
[1759762015834,2.14739121,4656.9,4656.3,4.845]
[1759762016151,2.14739121,4656.9,4656.3,2.445]
[1759762016533,2.14742141,4656.8,4656.3,4.845]
[1759762016923,2.14736024,4656.9,4656.3,4.845]
[1759762017130,0.4386,4657.3,4656.3,5.66995289]
[1759762017328,2.14735337,4656.9,4656.3,5.66995289]
[1759762017555,0.002,4657.4,4656.3,5.66995289]
[1759762017858,2.14740311,4656.8,4656.3,5.66995289]
[1759762018056,0.002,4657.4,4656.3,5.66995289]
[1759762018352,2.58586662,4657.1,4656.3,5.66995289]
[1759762018556,2.14736286,4656.9,4656.3,5.66995289]
[1759762018765,2.14736286,4656.9,4656.4,0.38733156]
[1759762018943,2.14736286,4656.9,4656.5,2.4]
[1759762019149,2.14736055,4656.9,4656.5,2.4]
[1759762020256,2.14912918,4657.4,4656.5,2.4]
[1759762020447,2.1472264,4657.2,4656.5,2.4]
[1759762020635,0.002,4657.4,4656.5,2.4]
[1759762020636,2.14735957,4656.9,4656.5,2.4]
[1759762020836,2.14723628,4657.2,4656.4,0.38733156]
[1759762021038,2.58587195,4657.1,4656.6,2.444]
[1759762021247,0.4386,4657.0,4656.6,2.444]
[1759762021447,2.14735881,4656.9,4656.6,2.444]
[1759762021733,0.4406,4657.4,4656.6,2.444]
[1759762022059,0.002,4657.4,4656.7,2.4]
[1759762022260,2.14912145,4657.4,4656.8,2.8844]
[1759762022458,0.002,4657.4,4656.8,0.4844]
[1759762022625,0.002,4657.4,4656.8,0.9482]
[1759762022827,0.002,4657.4,4656.8,3.3482]
[1759762023025,2.14916245,4657.4,4656.9,0.57922]
[1759762023255,0.002,4657.4,4656.4,1.59826201]
[1759762023462,0.002,4657.4,4656.4,1.14156201]
[1759762023632,0.002,4657.4,4656.3,0.001]
[1759762023633,2.14735274,4656.9,4656.5,2.444]
[1759762023832,0.4381,4656.9,4656.5,2.444]
[1759762024060,0.002,4657.4,4656.5,2.444]
[1759762024262,2.14717205,4657.3,4656.6,4.844]
[1759762024433,2.14912338,4657.4,4656.6,2.444]
[1759762024631,0.69694234,4657.3,4656.3,1.14256201]
[1759762024958,2.14758182,4656.4,4656.3,0.001]
[1759762025174,2.58568182,4656.4,4656.3,2.445]
[1759762025756,2.53568182,4656.4,4656.3,0.001]
[1759762025953,2.64288182,4656.4,4656.3,0.001]
[1759762026169,3.12192155,4656.4,4656.3,0.001]
[1759762027383,2.14758182,4656.4,4656.3,0.001]
[1759762027553,0.1072,4656.8,4656.3,2.445]
[1759762027752,2.1475017,4656.6,4656.3,2.445]
[1759762027968,2.14758182,4656.4,4656.3,2.445]
[1759762028256,2.58568182,4656.4,4656.3,2.445]
[1759762029889,2.14758182,4656.4,4656.3,2.445]
[1759762030054,2.80044,4656.4,4656.3,2.445]
[1759762030249,2.58568182,4656.4,4656.3,0.001]
[1759762030480,2.69288182,4656.4,4656.3,0.001]
[1759762031979,2.14781245,4655.9,4655.8,1e-08]
[1759762032179,4.69901245,4655.9,4655.8,1e-08]
[1759762032377,5.77071245,4655.9,4655.8,1e-08]
[1759762032582,4.31901476,4655.9,4655.8,1e-08]
[1759762032785,6.76301476,4655.9,4655.8,1e-08]
[1759762032953,6.76301476,4655.9,4655.7,0.001]
[1759762033159,6.76301476,4655.9,4654.6,0.001]
[1759762033160,2.14808927,4655.3,4654.6,0.001]
[1759762033384,4.69928927,4655.3,4654.6,0.001]
[1759762033684,5.82212013,4655.3,4654.6,0.001]
[1759762035882,6.45572013,4655.3,4654.6,0.001]
[1759762039672,6.88430699,4655.3,4654.6,0.001]
[1759762039865,3.37812013,4655.3,4654.6,0.001]
[1759762040069,5.82312013,4655.3,4654.6,0.001]
[1759762040286,5.82312013,4655.3,4655.1,0.001]
[1759762041761,5.38502013,4655.3,4655.1,0.001]
[1759762042386,2.94002013,4655.3,4655.1,0.001]
[1759762042586,2.25528927,4655.3,4655.1,0.001]
[1759762042891,2.25448927,4655.3,4655.1,0.001]
[1759762043084,2.25448927,4655.3,4655.2,0.4577]
[1759762043265,2.25448927,4655.3,4655.2,0.001]
[1759762043467,0.002,4656.4,4655.2,0.4577]
[1759762043772,0.21694752,4656.4,4655.3,0.4567]
[1759762044176,2.14767406,4656.2,4655.3,0.4567]
[1759762044491,2.14762794,4656.3,4655.3,0.4567]
[1759762044665,0.002,4656.4,4655.3,0.4567]
[1759762044992,2.14789218,4655.8,4655.3,0.4567]
[1759762045192,0.002,4656.4,4655.3,0.71739249]
[1759762045391,0.002,4656.4,4655.2,0.001]
[1759762045392,2.14799699,4655.5,4655.4,0.4567]
[1759762045575,2.14795178,4655.6,4655.4,0.4567]
[1759762045772,2.14762794,4656.3,4655.2,0.001]
[1759762046012,2.14795085,4655.6,4655.5,0.4567]
[1759762047276,2.1495865,4656.4,4655.5,0.4567]
[1759762047609,2.14795085,4655.6,4655.5,0.4567]
[1759762048223,2.14808927,4655.3,4655.2,0.001]
[1759762048683,2.58618927,4655.3,4655.2,0.001]
[1759762050310,4.98618927,4655.3,4655.2,0.001]
[1759762050816,3.4717,4655.3,4654.2,0.001]
[1759762050995,2.14818156,4655.1,4654.2,0.001]
[1759762051190,2.14836616,4654.7,4654.2,0.001]
[1759762053793,2.25556616,4654.7,4654.2,0.001]
[1759762054209,2.72876616,4654.7,4654.2,0.001]
[1759762054513,5.17276616,4654.7,4654.2,0.001]
[1759762055893,4.69956616,4654.7,4654.2,0.001]
[1759762056098,5.69198621,4654.7,4654.2,0.001]
[1759762060297,5.69198621,4654.7,4654.1,1e-08]
[1759762060298,2.14859696,4654.2,4654.1,1e-08]
[1759762060507,4.59259696,4654.2,4654.1,1e-08]
[1759762060721,5.02169696,4654.2,4654.1,1e-08]
[1759762061228,5.22221149,4654.2,4654.1,1e-08]
[1759762061393,5.65179487,4654.2,4654.1,1e-08]
[1759762065920,5.22269487,4654.2,4654.1,1e-08]
[1759762066624,5.65179487,4654.2,4654.1,1e-08]
[1759762066820,5.45128034,4654.2,4654.1,1e-08]
[1759762067326,5.65087953,4654.2,4654.1,1e-08]
[1759762067621,6.28447953,4654.2,4654.1,1e-08]
[1759762067792,6.28449924,4654.2,4654.1,1e-08]
[1759762067997,6.08408034,4654.2,4654.1,1e-08]
[1759762068225,6.28449485,4654.2,4654.1,1e-08]
[1759762068919,3.84049485,4654.2,4654.1,1e-08]
[1759762069123,6.28449485,4654.2,4654.1,1e-08]
[1759762072494,5.85539485,4654.2,4654.1,1e-08]
[1759762073029,10.80944432,4654.2,4654.1,1e-08]
[1759762073228,8.36544432,4654.2,4654.1,1e-08]
[1759762073528,10.80944432,4654.2,4654.1,1e-08]
[1759762074711,10.38034432,4654.2,4654.1,1e-08]
[1759762075123,9.85394432,4654.2,4654.1,1e-08]
[1759762078008,2.88499485,4654.2,4654.1,1e-08]
[1759762078210,9.85394432,4654.2,4654.1,1e-08]
[1759762078432,2.88499485,4654.2,4654.1,1e-08]
[1759762078633,4.69899696,4654.2,4654.1,1e-08]
[1759762079409,4.69899696,4654.2,4654.1,0.43970001]
[1759762080208,4.69899696,4654.2,4654.1,1e-08]
[1759762080410,4.69899696,4654.2,4654.1,0.43970001]
[1759762080612,2.25499696,4654.2,4654.1,0.43970001]
[1759762080811,2.14853886,4654.4,4654.1,0.43970001]
[1759762081014,2.14850088,4654.5,4654.1,0.43970001]
[1759762081213,0.1072,4654.6,4654.1,0.43970001]
[1759762081411,0.002,4654.7,4654.1,0.43970001]
[1759762081931,2.15040685,4654.7,4654.4,0.1072]
[1759762082237,2.15038017,4654.7,4654.5,0.4397]
[1759762082408,0.002,4654.7,4654.5,0.4397]
[1759762083011,0.002,4654.7,4654.5,2.58814651]
[1759762083213,0.002,4654.7,4654.6,2.14841232]
[1759762083440,0.002,4654.7,4654.6,0.4453]
[1759762083866,2.14845848,4654.5,4654.4,0.1072]
[1759762084143,2.1485508,4654.3,4654.1,1e-08]
[1759762084364,2.25579696,4654.2,4654.1,1e-08]
[1759762084855,2.25579696,4654.2,4654.1,0.44530001]
[1759762085066,0.1072,4654.3,4654.1,0.44530001]
[1759762085216,2.14841917,4654.6,4654.1,0.55250001]
[1759762085420,0.002,4654.7,4654.1,0.55250001]
[1759762085629,2.14841232,4654.6,4654.1,0.55250001]
[1759762085824,2.14854735,4654.4,4654.2,0.4453]
[1759762086026,2.15039186,4654.7,4654.1,0.10720001]
[1759762086027,0.002,4654.7,4654.1,0.10720001]
[1759762086348,0.002,4654.7,4654.4,4.54850464]
[1759762086547,0.002,4654.7,4654.6,4.65561232]
[1759762086761,0.002,4654.7,4654.6,2.25561232]
[1759762086920,0.002,4654.7,4654.6,2.70091232]
[1759762088719,0.002,4654.7,4654.6,2.78685758]
[1759762088934,0.002,4654.7,4654.6,5.9203938]
[1759762089258,0.002,4654.7,4654.6,8.3633938]
[1759762091744,0.0012,4654.7,4654.6,8.3633938]
[1759762091945,0.0012,4654.7,4654.6,6.21498148]
[1759762092165,0.0012,4654.7,4654.6,0.73353622]
[1759762092166,2.14956616,4654.7,4654.6,0.73353622]
[1759762092351,0.0012,4654.7,4654.1,0.44530001]
[1759762092688,0.0012,4654.7,4654.2,2.4]
[1759762092861,2.14956826,4654.7,4654.3,2.443]
[1759762093158,0.0012,4654.7,4654.1,1e-08]
[1759762093367,2.14961072,4654.7,4654.2,2.443]
[1759762093533,0.0012,4654.7,4654.2,2.443]
[1759762094136,0.0012,4654.7,4654.1,1e-08]
[1759762094137,2.14841232,4654.6,4654.1,1e-08]
[1759762094366,2.1495849,4654.7,4654.2,2.443]
[1759762094550,2.1485508,4654.3,4654.2,2.443]
[1759762094755,0.4572,4654.7,4654.2,2.443]
[1759762094953,2.14842038,4654.6,4654.2,2.443]
[1759762095152,2.14851017,4654.4,4654.2,2.443]
[1759762095476,0.0012,4654.7,4654.2,2.443]
[1759762095674,2.14958947,4654.7,4654.2,2.443]
[1759762095974,0.0012,4654.7,4654.2,2.443]
[1759762096190,2.14957118,4654.7,4654.2,2.443]
[1759762096347,0.0012,4654.7,4654.3,0.4453]
[1759762096560,0.0012,4654.7,4654.4,0.4453]
[1759762096992,0.0012,4654.7,4654.3,2.14850927]
[1759762096993,0.0012,4654.7,4654.5,0.4453]
[1759762097885,0.0012,4654.7,4654.6,0.4453]
[1759762098083,0.0012,4654.7,4654.6,0.25938121]
[1759762098258,0.0012,4654.7,4654.2,0.2443]
[1759762098458,0.0012,4654.7,4654.3,2.442]
[1759762099180,0.0012,4654.7,4654.1,2.14863721]
[1759762099486,0.0012,4654.7,4654.1,1e-08]
[1759762099708,2.14849549,4654.5,4654.2,2.442]
[1759762099858,0.4572,4654.7,4654.3,2.442]
[1759762100213,0.456,4654.6,4654.3,2.442]
[1759762100368,0.0012,4654.7,4654.3,2.442]
[1759762100757,0.456,4654.6,4654.1,1e-08]
[1759762100953,0.456,4654.6,4654.1,2.44200001]
[1759762101173,2.14859696,4654.2,4654.1,1e-08]
[1759762101553,2.60459696,4654.2,4654.1,1e-08]
[1759762102159,2.71179696,4654.2,4654.1,1e-08]
[1759762104276,0.1072,4654.2,4654.1,1e-08]
[1759762104479,0.0012,4654.7,4654.1,0.44530001]
[1759762104796,2.14859696,4654.2,4654.1,1e-08]
[1759762105274,3.0450296,4654.2,4654.1,1e-08]
[1759762106012,2.60459696,4654.2,4654.1,1e-08]
[1759762108988,2.14859696,4654.2,4654.1,1e-08]
[1759762109169,2.25579696,4654.2,4654.1,1e-08]
[1759762109873,2.14859696,4654.2,4654.1,0.44530001]
[1759762110073,2.14859696,4654.2,4654.1,1e-08]
[1759762110401,2.71179696,4654.2,4654.1,1e-08]
[1759762111074,3.19782814,4654.2,4654.1,1e-08]
[1759762113119,2.25579696,4654.2,4654.1,1e-08]
[1759762113486,2.70209696,4654.2,4654.1,1e-08]
[1759762113992,2.25579696,4654.2,4654.1,1e-08]
[1759762114511,2.70209696,4654.2,4654.1,1e-08]
[1759762115088,2.25579696,4654.2,4654.1,1e-08]
[1759762115288,2.14859696,4654.2,4654.1,0.44440001]
[1759762115907,2.14848711,4654.5,4654.1,0.44440001]
[1759762116111,0.0012,4654.7,4654.2,0.4649]
[1759762116314,2.14851187,4654.4,4654.2,0.4649]
[1759762116511,2.14851187,4654.4,4654.1,1e-08]
[1759762116512,0.0004,4654.7,4654.3,0.4649]
[1759762116712,2.14850464,4654.4,4654.3,0.4649]
[1759762117023,0.0004,4654.7,4654.1,1e-08]
[1759762117222,2.14857364,4654.3,4654.2,0.4649]
[1759762117822,0.0004,4654.7,4654.2,2.9069]
[1759762118028,2.14846381,4654.5,4654.3,0.4649]
[1759762118322,2.14846381,4654.5,4654.4,0.4649]